lending/lending_fUSD_20250406
["ID","MTS","AMOUNT","RATE_DAILY","PERIOD"]
[357242926,1743934249719,-581.04583714,0.00043836,120]
[357242927,1743934249728,-1221.98054143,0.00043836,120]
[357242928,1743934249743,-739.43605075,0.00043836,120]
[357242929,1743934249754,-482.54449068,0.00043836,120]
[357242930,1743934249764,-608.09959124,0.00043836,120]
[357242931,1743934249775,-613.88095019,0.00043836,120]
[357242932,1743934249785,-373.51904981,0.00043836,120]
[357242933,1743934249804,-711.6719425,0.00043836,120]
[357242934,1743934249817,-136.78954912,0.00043836,120]
[357242935,1743934249826,-1221.98054143,0.00043836,120]
[357242936,1743934249835,-119.24128232,0.00047,120]
[357242937,1743934249851,-93.79829738,0.00047,120]
[357242938,1743934250041,-151.0,0.00048961,14]
[357242939,1743934250058,-151.0,0.00049366,120]
[357242940,1743934250069,-252.76057645,0.00049863,20]
[357242941,1743934250078,-1000.0,0.00049863,20]
[357242942,1743934250089,-2176.47133629,0.00049882,30]
[357242943,1743934250100,-327.29866371,0.00049882,30]
[357242944,1743934250110,-151.0,0.000499,120]
[357242945,1743934250119,-151.0,0.000499,120]
[357242946,1743934250129,-151.0,0.000499,120]
[357242947,1743934250138,-158.69084,0.000499,120]
[357242948,1743934250147,-158.374622,0.000499,120]
[357242949,1743934250157,-158.374622,0.000499,120]
[357242950,1743934250167,-280.575915,0.000499,120]
[357242951,1743934250176,-280.575915,0.000499,120]
[357242952,1743934250185,-166.48747506,0.000499,120]
[357242953,1743934250195,-166.48747506,0.000499,120]
[357242954,1743934250204,-166.48747506,0.000499,120]
[357242955,1743934250215,-166.48747506,0.000499,120]
[357242956,1743934250224,-166.48747506,0.000499,120]
[357242957,1743934250233,-166.48747506,0.000499,120]
[357242958,1743934250243,-4836.63786172,0.00049912,30]
[357242959,1743934250254,-867.194902,0.00049912,30]
[357242960,1743934250265,-19296.16723628,0.00049912,30]
[357242961,1743934250275,-2500.0,0.00049944,30]
[357242962,1743934250284,-1860.58,0.00049961,30]
[357242963,1743934250294,-3715.37671444,0.0004999,2]
[357242964,1743934250403,-9914.33043593,0.0004999,2]
[357242965,1743934677810,500.0,0.0003898,120]
[357242966,1743934979056,1000.0,0.00038965,30]
[357242970,1743935152119,-250.0,0.00019,2]
[357242971,1743935152140,-300.0,0.00021,2]
[357242972,1743935152161,-350.0,0.00023,2]
[357242973,1743935152182,-3802.03008833,0.00024,2]
[357242974,1743935152201,-184.97712899,0.00025,2]
[357242975,1743935226100,-5000.00042374,0.00024,5]
[357242976,1743935226122,-215.02287101,0.00025,2]
[357242977,1743935226143,-6837.66045965,0.00026677,2]
[357242978,1743935226168,-4485.78138267,0.00030187,3]
[357242979,1743935226189,-1181.27823103,0.0003581,2]
[357242981,1743935241091,-728.65739152,0.0003581,2]
[357242982,1743935247095,-1913.95306284,0.0003581,2]
[357242988,1743935356250,-1810.78215614,0.000232,2]
[357242989,1743935356269,-1883.51618869,0.00025,7]
[357242990,1743935356290,-168.02,0.00026849,2]
[357242991,1743935356310,-534.66098317,0.000318,2]
[357242992,1743935363083,-989.67323808,0.000318,2]
[357242993,1743935371073,-2826.40516567,0.000318,2]
[357243005,1743935431734,-2103.09522833,0.000318,2]
[357243006,1743935431744,-1503.55477167,0.00033,2]
[357243011,1743935437650,-587.25707444,0.00033,2]
[357243013,1743935437849,-2452.09287875,0.00033,2]
[357243014,1743935437858,-1176.26089259,0.00035,40]
[357243015,1743935437867,-151.38136808,0.00035,30]
[357243017,1743935437877,-649.28497618,0.00035108,2]
[357243019,1743935437886,-5334.13063669,0.0003511,30]
[357243027,1743935437961,-1968.86037401,0.0003511,30]
[357243116,1743935442995,-5948.5,0.0003511,30]
[357243139,1743935445626,-897.58999998,0.0003511,30]
[357243140,1743935445680,-19637.94293722,0.0003511,30]
[357243141,1743935445843,-545.068257,0.0003511,30]
[357243142,1743935445873,-80.96193234,0.0003511,30]
[357243143,1743935445918,-212.66145132,0.0003511,30]
[357243145,1743935824028,151.0,0.00038965,30]
[357243146,1743935824728,151.0,0.00038965,30]
[357243147,1743935825387,151.0,0.00038965,30]
[357243148,1743935826175,151.0,0.00038965,30]
[357243149,1743935826651,151.0,0.00038965,30]
[357243150,1743935827318,151.0,0.00038965,30]
[357243151,1743935827940,151.0,0.00038965,30]
[357243152,1743935828630,151.0,0.00038965,30]
[357243155,1743935852361,1448.81668135,0.00038965,120]
[357243157,1743936352118,-169.12,0.00026849,2]
[357243158,1743936352138,-327.4,0.00032427,2]
[357243159,1743936352160,-44.10293037,0.00032937,2]
[357243161,1743936446091,-432.81640631,0.00033386,2]
[357243162,1743936446118,-432.81640631,0.00033427,2]
[357243163,1743936446145,-157.67558757,0.00033596,2]
[357243164,1743936446172,-157.67558757,0.00033616,2]
[357243165,1743936446206,-200.0,0.00033629,2]
[357243166,1743936446234,-157.67558757,0.00033636,2]
[357243167,1743936446262,-157.67558757,0.00033656,2]
[357243168,1743936446288,-157.67558757,0.00033676,2]
[357243169,1743936446315,-5146.36071945,0.00033696,2]
[357243170,1743936497309,2432.65,0.00038965,30]
[357243171,1743936551078,-158.64745924,0.00033596,2]
[357243174,1743936608390,201.0,0.00038965,120]
[357243178,1743936631999,-201.0,0.000335,120]
[357243179,1743936632009,-95.49227323,0.00033596,2]
[357243180,1743936632104,-73.00663861,0.00033596,2]
[357243181,1743936632114,-676.08104128,0.00033696,2]
[357243185,1743936637790,-434.11151504,0.00033696,2]
[357243190,1743936640390,-7907.02145443,0.00033696,2]
[357243206,1743936643172,-17.83528486,0.00033696,2]
[357243400,1743936646069,-522.12500158,0.00033696,2]
[357243446,1743937387995,3969.166477,7.945e-05,2]
[357243452,1743937532239,-311.03,0.00031813,2]
[357243453,1743937532260,-360.22563639,0.00031852,2]
[357243458,1743937626098,-381.35560111,0.00032652,2]
[357243459,1743937626119,-157.67558757,0.00032711,2]
[357243460,1743937626140,-381.35560111,0.0003314,2]
[357243461,1743937626162,-475.95088837,0.00033296,2]
[357243462,1743937640090,-426.31911163,0.00033296,2]
[357243463,1743937640118,-200.0,0.00033299,2]
[357243464,1743937640141,-381.35560111,0.00033308,2]
[357243465,1743937640163,-200.0,0.00033324,2]
[357243466,1743937640187,-184.76634745,0.00033355,2]
[357243467,1743937645227,-815.23365255,0.00033355,2]
[357243468,1743937645248,-200.52,0.0003337,2]
[357243469,1743937645268,-381.35560111,0.00033521,2]
[357243470,1743937645288,-26.03956633,0.00033534,2]
[357243474,1743937750083,-165.51,0.00026849,2]
[357243475,1743937750103,-165.51,0.00032646,2]
[357243476,1743937750124,-131.63602124,0.00033534,2]
[357243477,1743937750148,-376.98900058,0.00033624,2]
[357243478,1743937753084,-246.11099776,0.00033624,2]
[357243479,1743937770080,-572.27522563,0.00033534,2]
[357243480,1743937770104,-10215.28232786,0.00033624,2]
[357243481,1743937780046,-10000.0,0.00033624,2]
[357243482,1743937781599,-3061.6176738,0.00033624,2]
[357243483,1743937781621,-150.0,0.00033634,7]
[357243484,1743937781642,-381.35560112,0.00033662,2]
[357243485,1743937781663,-257.56,0.00033678,2]
[357243486,1743937781683,-250.0,0.00033709,2]
[357243487,1743937781704,-309.39,0.00033788,3]
[357243488,1743937781724,-190.78,0.00033807,2]
[357243489,1743937781745,-1180.79,0.0003381,2]
[357243490,1743937781764,-150.0,0.00033911,2]
[357243491,1743937781785,-150.99,0.00033911,2]
[357243492,1743937781806,-835.3,0.00033971,120]
[357243493,1743937781827,-168.35,0.00033998,2]
[357243494,1743937781848,-381.35560112,0.00034016,2]
[357243495,1743937781869,-311.03,0.00034076,2]
[357243496,1743937781890,-381.35560113,0.00034313,2]
[357243497,1743937781910,-184.58,0.0003432,2]
[357243498,1743937781931,-200.0,0.000345,12]
[357243499,1743937781952,-500.0,0.000346,12]
[357243500,1743937781978,-597.966,0.000347,39]
[357243501,1743937781998,-174.362,0.000347,39]
[357243502,1743937782018,-183.21752283,0.000347,12]
[357243503,1743937782264,-516.78247717,0.000347,12]
[357243504,1743937782285,-2385.78,0.00034785,2]
[357243505,1743937782306,-1000.0,0.000348,12]
[357243506,1743937782327,-1200.0,0.000349,12]
[357243507,1743937782348,-165.6138,0.0003491,30]
[357243508,1743937782369,-254.2136,0.0003499,2]
[357243509,1743937782389,-4477.61012283,0.0003499,2]
[357243510,1743937782594,-10000.0,0.0003499,2]
[357243511,1743937783098,-10000.0,0.0003499,2]
[357243512,1743937785879,-10000.0,0.0003499,2]
[357243515,1743937805988,-1568.24797717,0.0003499,2]
[357243516,1743937806011,-160.5,0.00035,2]
[357243517,1743937806033,-5313.25202283,0.00035,2]
[357243519,1743937832337,-314.61115765,0.00034889,120]
[357243644,1743937840366,-451.07884235,0.00034889,120]
[357243645,1743937840375,-377.09928646,0.00035,2]
[357243654,1743937842976,-622.90071354,0.00035,2]
[357243655,1743937842985,-476.55095004,0.00035,2]
[357243656,1743937843029,-4836.0,0.00035,2]
[357243657,1743937843334,-913.44,0.00035,2]
[357243658,1743937843346,-7932.38784996,0.00035,2]
[357243659,1743937843355,-11350.00409826,0.00035004,2]
[357243660,1743937843364,-10922.70263265,0.00035006,2]
[357243662,1743937843412,-427.30146561,0.00035006,2]
[357243664,1743937843423,-9091.29138267,0.00035007,2]
[357243665,1743937843435,-2258.71271559,0.00035007,2]
[357243666,1743937843444,-4138.64601621,0.00035008,2]
[357243667,1743937843456,-6315.3,0.00035008,2]
[357243730,1743937924631,151.33990958,0.00038965,30]
[357243739,1743938730131,-168.02,0.00026849,2]
[357243740,1743938730152,-279.92,0.00032117,2]
[357243741,1743938730174,-154.27655827,0.00033935,2]
[357243742,1743938730195,-154.27655825,0.00033992,2]
[357243743,1743938730217,-709.00721575,0.00034004,2]
[357243750,1743938756629,18570.66897308,6.94e-05,2]
[357243751,1743938764288,10177.84580126,8e-05,2]
[357243752,1743938768931,4512.76383707,8e-05,2]
[357243755,1743938829092,-290.99278425,0.00034004,2]
[357243756,1743938829114,-49.46090996,0.00034011,2]
[357243757,1743938879443,15909.72917292,0.0001,2]
[357243758,1743938889565,982.41967688,9.5e-05,2]
[357243760,1743938910996,377.33013486,7.888e-05,2]
[357243762,1743938917113,6417.44595355,9.828e-05,2]
[357243763,1743938917227,-197.1645,0.00015,2]
[357243766,1743938941899,-150.0,0.00014999,2]
[357243767,1743938947089,-150.0,0.00014999,2]
[357243768,1743938947111,-65342.02622412,0.00015,2]
[357243769,1743938949252,-8017.997302,0.00015,2]
[357243770,1743938950122,-13245.74243263,0.00015,2]
[357243771,1743938950142,-2281.67955609,0.000318,2]
[357243772,1743938967095,-793.42693738,0.000318,2]
[357243787,1743939037020,-197.97110822,0.000318,2]
[357243788,1743939037030,-151.05909004,0.00034011,2]
[357243789,1743939037040,-150.0,0.00034015,7]
[357243790,1743939037049,-200.0,0.00034016,2]
[357243791,1743939037059,-168.35,0.00034034,2]
[357243792,1743939037068,-701.88,0.0003406,120]
[357243793,1743939037079,-250.0,0.00034062,2]
[357243794,1743939037089,-3752.25471929,0.00034093,2]
[357243795,1743939037101,-8228.01098835,0.00034093,2]
[357243796,1743939037113,-609.0114803,0.00034093,2]
[357243841,1743939040560,-287.56450001,0.00034093,2]
[357243842,1743939040572,-11023.15831205,0.00034093,2]
[357243843,1743939040582,-944.63,0.00034199,2]
[357243844,1743939040592,-279.92,0.00034381,2]
[357243845,1743939040601,-604.744,0.00034905,40]
[357243846,1743939040610,-868.6413,0.00034905,2]
[357243847,1743939040619,-6368.43602368,0.00034908,2]
[357243848,1743939040629,-699.6363889,0.0003491,35]
[357243849,1743939040639,-2500.0,0.0003491,2]
[357243850,1743939040648,-6368.43602364,0.00034919,2]
[357243851,1743939040657,-6368.43602364,0.00034931,2]
[357243852,1743939040667,-6368.43602364,0.00034942,2]
[357243853,1743939040676,-30.437868,0.00034953,2]
[357243915,1743939046229,-1027.50142683,0.00034953,2]
[357243916,1743939046272,-5310.49672881,0.00034953,2]
[357243917,1743939046282,-6368.43602364,0.00034965,2]
[357243918,1743939046292,-6368.43602364,0.00034976,2]
[357243919,1743939046301,-6368.43602364,0.00034987,2]
[357243920,1743939046312,-34850.62530027,0.0003499,2]
[357243921,1743939046381,-827.15,0.0003499,2]
[357243986,1743939957106,-250.0,0.00019,2]
[357243987,1743939957127,-300.0,0.00021,2]
[357243988,1743939957147,-350.0,0.00023,2]
[357243989,1743939957166,-168.97,0.00026849,2]
[357243990,1743939957186,-251.92,0.00032133,2]
[357243991,1743939957209,-303.24524766,0.00034006,2]
[357243992,1743939957230,-1000.0,0.00034023,2]
[357243993,1743939957250,-250.0,0.00034036,2]
[357243994,1743939957274,-168.36,0.00034041,2]
[357243995,1743939957294,-755.7,0.00034052,2]
[357243996,1743939957315,-130.1867177,0.00034054,120]
[357243998,1743940015091,-513.2032823,0.00034054,120]
[357243999,1743940015112,-123.74483745,0.00034083,2]
[357244000,1743940050118,-285.65708952,0.000332,2]
[357244001,1743940053089,-7642.49896588,0.000332,2]
[357244055,1743940238187,-433.63792807,0.00029,2]
[357244056,1743940238196,-132.62264882,0.00034027,2]
[357244057,1743940238277,-471.93735118,0.00034027,2]
[357244058,1743940238287,-200.0,0.0003403,2]
[357244059,1743940238296,-177.22919979,0.00034078,2]
[357244060,1743940238311,-48.98039316,0.00034078,2]
[357244061,1743940238320,-5287.67288198,0.00034083,2]
[357244233,1743940243326,-70.77201334,0.00034083,2]
[357244235,1743940243559,-436.48688517,0.00034083,2]
[357244276,1743940246487,-17981.32338206,0.00034083,2]
[357244277,1743940246496,-150.0,0.00034178,7]
[357244278,1743940246506,-9201.13641858,0.000342,2]
[357244279,1743940246515,-251.92,0.00034397,2]
[357244280,1743940246525,-303.24524766,0.00034536,2]
[357244281,1743940246534,-500.0,0.0003489,2]
[357244282,1743940246543,-249.39011,0.0003499,2]
[357244283,1743940246552,-413.2192,0.0003499,2]
[357244284,1743940246561,-483.795,0.00035,40]
[357244285,1743940246571,-160.5,0.00035,2]
[357244286,1743940246580,-20305.4706417,0.00035,2]
[357244287,1743940246601,-1347.45428396,0.00035,2]
[357244294,1743941233151,-156.79,0.00026849,2]
[357244295,1743941233172,-243.11,0.00032137,2]
[357244296,1743941233192,-156.79,0.00032968,2]
[357244297,1743941233213,-157.67558757,0.00033925,2]
[357244298,1743941233233,-160.86916179,0.00033925,2]
[357244299,1743941233254,-521.1029288,0.00034016,2]
[357244300,1743941238081,-160.38076605,0.00033954,2]
[357244301,1743941243113,-0.48839572,0.00033954,2]
[357244302,1743941243135,-355.31881663,0.00034,2]
[357244303,1743941243156,-394.69830823,0.00034016,2]
[357244308,1743941431486,-84.19876297,0.00034016,2]
[357244309,1743941431495,-250.0,0.00034025,2]
[357244310,1743941431504,-529.90673176,0.00034033,120]
[357244311,1743941431515,-59.86326824,0.00034033,120]
[357244312,1743941431525,-406.82043377,0.00034039,2]
[357244313,1743941431539,-76.81956623,0.00034039,2]
[357244314,1743941431548,-150.0,0.00034054,7]
[357244315,1743941431557,-153.33565989,0.00034301,2]
[357244316,1743941431568,-185.98398899,0.00034401,2]
[357244317,1743941431803,-57.12601101,0.00034401,2]
[357244318,1743941431814,-153.33565984,0.00034422,2]
[357244319,1743941431961,-153.33565984,0.00034543,2]
[357244321,1743941431971,-92.95871817,0.0003465,2]
[357244449,1743941439755,-1641.39150406,0.0003465,2]
[357244450,1743941439765,-480.4170227,0.0003465,2]
[357244451,1743941439774,-153.33565984,0.00034663,2]
[357244452,1743941439784,-355.31881663,0.00034709,2]
[357244453,1743941439795,-153.33565984,0.00034784,2]
[357244454,1743941439804,-153.33565984,0.00034905,2]
[357244455,1743941439813,-916.08857434,0.00035,2]
[357244456,1743941439822,-160.5,0.00035,2]
[357244457,1743941439831,-422.09601096,0.00035,2]
[357244458,1743941439840,-456.3189,0.00035,2]
[357244459,1743941439849,-1000.0,0.00035,2]
[357244460,1743941439860,-223.0311,0.00035,2]
[357244461,1743941439869,-1639.4293,0.00035,2]
[357244462,1743941439879,-721.0723,0.00035,2]
[357244463,1743941439888,-422.09601092,0.00035001,2]
[357244464,1743941439897,-422.09601092,0.00035002,2]
[357244465,1743941439906,-1066.00656621,0.00035003,2]
[357244466,1743941439929,-455.42257772,0.00035003,2]
[357244467,1743941439939,-422.09601092,0.00035003,2]
[357244468,1743941439948,-1521.42914393,0.00035004,2]
[357244469,1743941439957,-422.09601092,0.00035004,2]
[357244470,1743941439966,-1521.42914393,0.00035006,2]
[357244471,1743941439976,-422.09601092,0.00035006,2]
[357244472,1743941439985,-1512.4999816,0.00035007,2]
[357244473,1743941439997,-8.92916233,0.00035007,2]
[357244474,1743941440006,-422.09601092,0.00035007,2]
[357244475,1743941440016,-395.95705586,0.00035007,2]
[357244476,1743941440026,-1521.42914393,0.00035008,2]
[357244477,1743941440035,-422.09601092,0.00035008,2]
[357244478,1743941440044,-1521.42914393,0.00035009,2]
[357244479,1743941440054,-422.09601092,0.00035009,2]
[357244480,1743941440063,-151.41970733,0.0003501,2]
[357244481,1743941440073,-177.84596547,0.0003501,7]
[357244482,1743941440082,-387.036,0.0003501,40]
[357244483,1743941440091,-163.37199918,0.0003501,7]
[357244484,1743941440100,-1521.42914393,0.0003501,2]
[357244485,1743941440108,-422.09601092,0.0003501,2]
[357244486,1743941440117,-300.73962088,0.0003501,2]
[357244487,1743941440126,-4029.20580092,0.0003502,2]
[357244488,1743941440138,-89.93026238,0.0003502,2]
[357244489,1743941440146,-437.62493889,0.0003502,2]
[357244512,1743941442967,-6344.84439931,0.0003502,2]
[357244513,1743941442976,-169.1,0.00035044,2]
[357244514,1743941442985,-151.0,0.0003509,7]
[357244515,1743941442994,-200.7624805,0.00035099,7]
[357244516,1743941443003,-201.5475543,0.00035099,7]
[357244517,1743941443012,-151.0,0.000351,7]
[357244518,1743941443021,-151.0,0.000351,7]
[357244519,1743941443030,-151.0,0.000351,7]
[357244520,1743941443040,-151.0,0.000351,7]
[357244521,1743941443049,-158.681043,0.000351,7]
[357244522,1743941443058,-151.0,0.000351,7]
[357244523,1743941443067,-151.0,0.000351,7]
[357244524,1743941443076,-153.035526,0.000351,7]
[357244525,1743941443085,-153.46697,0.000351,7]
[357244526,1743941443095,-151.0,0.000351,7]
[357244527,1743941443104,-151.0,0.000351,7]
[357244529,1743941443113,-151.0,0.000351,7]
[357244531,1743941443123,-151.0,0.000351,7]
[357244533,1743941443132,-151.0,0.000351,7]
[357244535,1743941443141,-151.0,0.000351,7]
[357244537,1743941443151,-151.466611,0.000351,7]
[357244538,1743941443160,-151.0,0.000351,7]
[357244539,1743941443169,-151.0,0.000351,7]
[357244540,1743941443178,-157.587931,0.000351,7]
[357244541,1743941443188,-171.277531,0.000351,7]
[357244542,1743941443197,-171.277531,0.000351,7]
[357244543,1743941443206,-153.674802,0.000351,7]
[357244544,1743941443215,-171.277531,0.000351,7]
[357244545,1743941443224,-171.277531,0.000351,7]
[357244546,1743941443234,-151.0,0.000351,7]
[357244547,1743941443243,-151.0,0.000351,7]
[357244548,1743941443252,-151.817486,0.000351,7]
[357244549,1743941443261,-151.0,0.000351,7]
[357244550,1743941443270,-151.0,0.000351,7]
[357244551,1743941443279,-151.0,0.000351,7]
[357244552,1743941443288,-151.0,0.000351,7]
[357244553,1743941443297,-151.611025,0.000351,7]
[357244554,1743941443306,-151.0,0.000351,7]
[357244555,1743941443315,-151.0,0.000351,7]
[357244556,1743941443325,-151.0,0.000351,7]
[357244557,1743941443334,-151.0,0.000351,7]
[357244558,1743941443343,-151.0,0.000351,7]
[357244559,1743941443353,-151.0,0.000351,7]
[357244560,1743941443362,-151.0,0.000351,7]
[357244561,1743941443371,-151.0,0.000351,7]
[357244562,1743941443380,-151.0,0.000351,7]
[357244563,1743941443389,-151.0,0.000351,7]
[357244564,1743941443398,-216.77049,0.000351,7]
[357244565,1743941443407,-151.0,0.000351,7]
[357244566,1743941443417,-281.805782,0.000351,7]
[357244567,1743941443426,-281.805782,0.000351,7]
[357244568,1743941443435,-151.0,0.000351,7]
[357244569,1743941443445,-151.0,0.000351,7]
[357244570,1743941443454,-151.0,0.000351,7]
[357244571,1743941443463,-151.0,0.000351,7]
[357244572,1743941443473,-151.0,0.000351,7]
[357244573,1743941443482,-151.0,0.000351,7]
[357244574,1743941443491,-151.0,0.000351,7]
[357244575,1743941443500,-151.0,0.000351,7]
[357244576,1743941443509,-151.0,0.000351,7]
[357244577,1743941443519,-151.0,0.000351,7]
[357244578,1743941443528,-151.0,0.000351,7]
[357244579,1743941443537,-151.0,0.000351,7]
[357244580,1743941443546,-151.0,0.000351,7]
[357244581,1743941443555,-151.0,0.000351,7]
[357244582,1743941443565,-151.0,0.000351,7]
[357244583,1743941443574,-151.0,0.000351,7]
[357244584,1743941443584,-151.0,0.000351,7]
[357244585,1743941443593,-4491.41094,0.000351,7]
[357244586,1743941443603,-4491.41094,0.000351,7]
[357244587,1743941443612,-4491.41094,0.000351,7]
[357244588,1743941443621,-3329.23108291,0.000351,7]
[357244593,1743941445503,-1162.17985709,0.000351,7]
[357244594,1743941445525,-151.0,0.000351,7]
[357244595,1743941445542,-151.0,0.000351,7]
[357244596,1743941445551,-151.0,0.000351,7]
[357244597,1743941445560,-151.0,0.000351,7]
[357244598,1743941445570,-151.0,0.000351,7]
[357244599,1743941445579,-151.0,0.000351,7]
[357244600,1743941445588,-225.52643,0.000351,7]
[357244601,1743941445597,-151.229133,0.000351,7]
[357244602,1743941445607,-151.0,0.000351,7]
[357244603,1743941445616,-151.0,0.000351,7]
[357244604,1743941445625,-151.0,0.000351,7]
[357244605,1743941445634,-151.0,0.000351,7]
[357244606,1743941445643,-151.0,0.000351,30]
[357244607,1743941445652,-151.0,0.000351,30]
[357244608,1743941445661,-105.78300888,0.000351,30]
[357244609,1743941445672,-45.21699112,0.000351,30]
[357244610,1743941445682,-151.0,0.000351,30]
[357244611,1743941445691,-151.0,0.000351,30]
[357244612,1743941445701,-151.0,0.000351,30]
[357244613,1743941445710,-151.0,0.000351,30]
[357244614,1743941445719,-151.0,0.000351,30]
[357244615,1743941445728,-151.0,0.000351,30]
[357244616,1743941445738,-123.54474888,0.000351,30]
[357244617,1743941445749,-27.45525112,0.000351,30]
[357244618,1743941445759,-151.0,0.000351,30]
[357244619,1743941445769,-151.0,0.000351,30]
[357244620,1743941445779,-151.0,0.000351,30]
[357244621,1743941445793,-151.0,0.000351,30]
[357244622,1743941445802,-151.0,0.000351,30]
[357244623,1743941445811,-151.0,0.000351,30]
[357244624,1743941445820,-151.0,0.000351,30]
[357244625,1743941445830,-151.0,0.000351,30]
[357244626,1743941445839,-151.0,0.000351,30]
[357244627,1743941445848,-135.07516,0.000351,30]
[357244628,1743941445859,-15.92484,0.000351,30]
[357244629,1743941445869,-151.0,0.000351,30]
[357244630,1743941445878,-151.0,0.000351,30]
[357244631,1743941445887,-151.0,0.000351,30]
[357244632,1743941445896,-151.0,0.000351,30]
[357244633,1743941445905,-278.48205791,0.000351,30]
[357244634,1743941445914,-200.346068,0.000351,7]
[357244635,1743941445923,-200.346068,0.000351,7]
[357244636,1743941445933,-151.0,0.000351,7]
[357244637,1743941445942,-151.0,0.000351,7]
[357244638,1743941445951,-200.346068,0.000351,7]
[357244639,1743941445960,-200.346068,0.000351,7]
[357244640,1743941445969,-151.0,0.000351,7]
[357244641,1743941445978,-151.0,0.000351,7]
[357244642,1743941445987,-129.30883009,0.000351,7]
[357244643,1743941446031,-21.69116991,0.000351,7]
[357244644,1743941446040,-151.0,0.000351,7]
[357244645,1743941446049,-151.0,0.000351,7]
[357244646,1743941446058,-151.0,0.000351,7]
[357244647,1743941446067,-184.482883,0.000351,7]
[357244648,1743941446077,-171.03363,0.000351,7]
[357244649,1743941446086,-171.03363,0.000351,7]
[357244650,1743941446095,-151.978421,0.000351,7]
[357244651,1743941446104,-213.668936,0.000351,7]
[357244652,1743941446113,-171.03363,0.000351,7]
[357244653,1743941446123,-213.668936,0.000351,7]
[357244654,1743941446132,-171.03363,0.000351,7]
[357244655,1743941446141,-213.668936,0.000351,7]
[357244656,1743941446150,-213.668936,0.000351,7]
[357244657,1743941446159,-151.0,0.000351,7]
[357244658,1743941446168,-367.546611,0.000351,7]
[357244659,1743941446177,-367.546611,0.000351,7]
[357244660,1743941446186,-151.0,0.000351,7]
[357244661,1743941446195,-151.0,0.000351,7]
[357244662,1743941446204,-202.288247,0.000351,7]
[357244663,1743941446213,-202.288247,0.000351,7]
[357244664,1743941446222,-151.0,0.000351,7]
[357244665,1743941446338,-151.0,0.000351,7]
[357244666,1743941446348,-202.288247,0.000351,7]
[357244667,1743941446358,-202.288247,0.000351,7]
[357244668,1743941446367,-151.0,0.000351,7]
[357244669,1743941446376,-151.0,0.000351,7]
[357244670,1743941446386,-151.0,0.000351,7]
[357244671,1743941446395,-549.97235173,0.000351,3]
[357244672,1743941446407,-7503.30746983,0.000351,3]
[357244673,1743941446422,-1639.42923922,0.000351,3]
[357244674,1743941446434,-3677.59427964,0.000351,3]
[357244675,1743941508255,3967.0,0.00038961,30]
[357244694,1743942293096,12000.0,0.00038963,30]
[357246461,1743942446131,-250.0,0.00019,2]
[357246462,1743942446154,-521.20459195,0.0002,2]
[357246463,1743942452483,150.0,0.00038963,120]
[357246489,1743942566094,-6065.01033585,0.0002,2]
[357246490,1743942566163,-1364.59223899,0.0002,2]
[357246491,1743942567143,-208.40822229,0.0002,2]
[357246493,1743942570110,-3879.0797349,0.0002,2]
[357246494,1743942570151,-4900.00041527,0.0002,2]
[357246495,1743942572090,-13307.08826463,0.0002,2]
[357246518,1743942631572,-706.92122751,0.0002,2]
[357246520,1743942631634,-508.47198714,0.0002,2]
[357246521,1743942631646,-687.52527772,0.0002,2]